fUSD/lending_fUSD_20241224
["ID","MTS","AMOUNT","RATE_DAILY","PERIOD"]
[346517161,1735018244613,-500.0,0.00013972,2]
[346517162,1735018244622,-500.0,0.00013972,2]
[346517163,1735018244633,-500.0,0.00013972,2]
[346517164,1735018244642,-349.68131574,0.00013972,2]
[346517165,1735018244652,-383.597552,0.00013972,2]
[346517166,1735018244661,-517.93441465,0.00013972,2]
[346517167,1735018244671,-500.0,0.00013972,2]
[346517168,1735018244680,-500.0,0.00013972,2]
[346517169,1735018244690,-500.0,0.00013972,2]
[346517170,1735018244699,-500.0,0.00013972,2]
[346517171,1735018244708,-555.168296,0.00013972,2]
[346517172,1735018244718,-500.0,0.00013972,2]
[346517173,1735018244727,-500.0,0.00013972,2]
[346517174,1735018244737,-500.0,0.00013972,2]
[346517175,1735018244746,-500.0,0.00013972,2]
[346517176,1735018244755,-500.0,0.00013972,2]
[346517177,1735018244765,-500.0,0.00013972,2]
[346517178,1735018244774,-500.0,0.00013972,2]
[346517179,1735018244783,-500.0,0.00013972,2]
[346517180,1735018244793,-507.80187707,0.00013972,2]
[346517181,1735018244802,-500.0,0.00013972,2]
[346517182,1735018244811,-946.68,0.00013972,2]
[346517183,1735018244820,-500.0,0.00013972,2]
[346517184,1735018244830,-500.0,0.00013972,2]
[346517185,1735018244839,-500.0,0.00013972,2]
[346517186,1735018244848,-500.0,0.00013972,2]
[346517187,1735018244857,-500.0,0.00013972,2]
[346517188,1735018244867,-500.0,0.00013972,2]
[346517189,1735018244876,-500.0,0.00013972,2]
[346517190,1735018244885,-503.29804047,0.00013972,2]
[346517191,1735018244895,-500.0,0.00013972,2]
[346517192,1735018244904,-592.9,0.00013972,2]
[346517193,1735018244913,-500.0,0.00013972,2]
[346517194,1735018244922,-547.28,0.00013972,2]
[346517195,1735018244933,-501.35175845,0.00013972,2]
[346517196,1735018244943,-500.0,0.00013972,2]
[346517197,1735018244954,-598.2,0.00013972,2]
[346517198,1735018244964,-503.70232947,0.00013972,2]
[346517199,1735018244974,-520.01,0.00013972,2]
[346517200,1735018244983,-500.0,0.00013972,2]
[346517201,1735018244992,-506.66,0.00013972,2]
[346517202,1735018245002,-500.0,0.00013972,2]
[346517203,1735018245011,-500.0,0.00013972,2]
[346517204,1735018245021,-500.0,0.00013972,2]
[346517205,1735018245030,-500.0,0.00013972,2]
[346517206,1735018245039,-662.17,0.00013972,2]
[346517207,1735018245048,-500.0,0.00013972,2]
[346517208,1735018245058,-498.14410753,0.00013972,2]
[346517209,1735018245067,-500.0,0.00013972,2]
[346517210,1735018245076,-500.0,0.00013972,2]
[346517211,1735018245085,-502.37073072,0.00013972,2]
[346517212,1735018245095,-500.0,0.00013972,2]
[346517213,1735018245105,-696.48,0.00013972,2]
[346517214,1735018245114,-500.0,0.00013972,2]
[346517215,1735018245125,-500.0,0.00013972,2]
[346517216,1735018245134,-518.6,0.00013972,2]
[346517217,1735018245147,-504.37356837,0.00013972,2]
[346517218,1735018245157,-500.0,0.00013972,2]
[346517219,1735018245167,-500.0,0.00013972,2]
[346517220,1735018245177,-1152.77,0.00013972,2]
[346517221,1735018245187,-500.0,0.00013972,2]
[346517222,1735018245196,-500.0,0.00013972,2]
[346517223,1735018245205,-500.0,0.00013972,2]
[346517224,1735018245216,-500.0,0.00013972,2]
[346517225,1735018245226,-500.0,0.00013972,2]
[346517226,1735018245235,-586.32,0.00013972,2]
[346517227,1735018245245,-725.31,0.00013972,2]
[346517228,1735018245255,-500.0,0.00013972,2]
[346517229,1735018245265,-846.78,0.00013972,2]
[346517230,1735018245274,-500.0,0.00013972,2]
[346517231,1735018245285,-500.0,0.00013972,2]
[346517232,1735018245295,-500.0,0.00013972,2]
[346517233,1735018245306,-500.0,0.00013972,2]
[346517234,1735018245316,-547.95,0.00013972,2]
[346517235,1735018245325,-500.0,0.00013972,2]
[346517236,1735018245335,-713.44,0.00013972,2]
[346517237,1735018245344,-796.84,0.00013972,2]
[346517238,1735018245354,-167.42467864,0.00013972,2]
[346517239,1735018245373,-356.32532136,0.00013972,2]
[346517240,1735018245383,-79.35639721,0.00013972,2]
[346517241,1735018245394,-420.64360279,0.00013972,2]
[346517242,1735018245403,-500.0,0.00013972,2]
[346517243,1735018245412,-500.0,0.00013972,2]
[346517244,1735018245421,-500.0,0.00013972,2]
[346517245,1735018245433,-500.0,0.00013972,2]
[346517246,1735018245442,-500.0,0.00013972,2]
[346517247,1735018245452,-500.0,0.00013972,2]
[346517248,1735018245461,-500.0,0.00013972,2]
[346517249,1735018245470,-500.0,0.00013972,2]
[346517250,1735018245479,-3037.63048143,0.00013972,2]
[346517251,1735018245491,-504.20891741,0.00013972,2]
[346517252,1735018245504,-573.9954528,0.00013972,2]
[346517253,1735018245521,-900.38514836,0.00013972,2]
[346517254,1735018245535,-1638.06,0.00013972,2]
[346517255,1735018245545,-500.0,0.00013972,2]
[346517256,1735018245556,-551.44,0.00013972,2]
[346517257,1735018245567,-869.64728749,0.00013972,2]
[346517258,1735018245580,-295.13271251,0.00013972,2]
[346517259,1735018245590,-500.0,0.00013972,2]
[346517260,1735018245599,-500.0,0.00013972,2]
[346517261,1735018245609,-500.0,0.00013972,2]
[346517262,1735018245619,-112.5412688,0.00013972,2]
[346517263,1735018245635,-669.9487312,0.00013972,2]
[346517264,1735018245644,-1583.85,0.00013972,2]
[346517265,1735018245654,-500.0,0.00013972,2]
[346517266,1735018245665,-500.0,0.00013972,2]
[346517267,1735018245676,-901.71,0.00013972,2]
[346517268,1735018245686,-500.0,0.00013972,2]
[346517269,1735018245696,-1977.81,0.00013972,2]
[346517270,1735018245706,-500.0,0.00013972,2]
[346517271,1735018245716,-509.19,0.00013972,2]
[346517272,1735018245725,-500.0,0.00013972,2]
[346517273,1735018245735,-500.0,0.00013972,2]
[346517274,1735018245744,-500.0,0.00013972,2]
[346517275,1735018245754,-500.0,0.00013972,2]
[346517276,1735018245763,-500.0,0.00013972,2]
[346517277,1735018245773,-500.0,0.00013972,2]
[346517279,1735018245783,-792.79,0.00013972,2]
[346517280,1735018245792,-849.68,0.00013972,2]
[346517282,1735018245802,-2088.9,0.00013972,2]
[346517283,1735018245811,-500.0,0.00013972,2]
[346517284,1735018245820,-2055.88,0.00013972,2]
[346517285,1735018245830,-500.0,0.00013972,2]
[346517286,1735018245839,-7677.04,0.00013972,2]
[346517287,1735018245849,-543.48,0.00013972,2]
[346517288,1735018245858,-500.0,0.00013972,2]
[346517289,1735018245867,-854.97,0.00013972,2]
[346517290,1735018245876,-1395.53,0.00013972,2]
[346517291,1735018245886,-500.0,0.00013972,2]
[346517292,1735018245896,-500.0,0.00013972,2]
[346517293,1735018245905,-500.0,0.00013972,2]
[346517294,1735018245915,-1385.02,0.00013972,2]
[346517295,1735018245924,-500.0,0.00013972,2]
[346517296,1735018245936,-3679.71,0.00013972,2]
[346517297,1735018245945,-500.0,0.00013972,2]
[346517298,1735018245956,-1080.57,0.00013972,2]
[346517299,1735018245966,-500.0,0.00013972,2]
[346517300,1735018246093,-1694.03,0.00013972,2]
[346517301,1735018246103,-500.0,0.00013972,2]
[346517302,1735018246113,-500.0,0.00013972,2]
[346517303,1735018246123,-505.35,0.00013972,2]
[346517304,1735018246132,-1117.85,0.00013972,2]
[346517305,1735018246143,-705.9,0.00013972,2]
[346517306,1735018246152,-500.0,0.00013972,2]
[346517307,1735018246161,-1539.8,0.00013972,2]
[346517308,1735018246171,-500.0,0.00013972,2]
[346517309,1735018246181,-2249.94,0.00013972,2]
[346517310,1735018246191,-500.0,0.00013972,2]
[346517311,1735018246200,-500.0,0.00013972,2]
[346517312,1735018246210,-500.0,0.00013972,2]
[346517313,1735018246220,-3833.98,0.00013972,2]
[346517314,1735018246229,-500.0,0.00013972,2]
[346517315,1735018246238,-58.33347823,0.00013972,2]
[346517316,1735018246255,-282.55999991,0.00013972,2]
[346517317,1735018246266,-159.10652186,0.00013972,2]
[346517318,1735018246275,-500.0,0.00013972,2]
[346517319,1735018246284,-220.89351814,0.00013972,2]
[346517320,1735018246302,-340.16055655,0.00013972,2]
[346517321,1735018246849,-500.0,0.00013698,2]
[346517322,1735018246859,-2792.27565339,0.00013698,2]
[346517323,1735018246871,-1456.40434661,0.00013698,2]
[346517324,1735018246882,-376.60592531,0.00013972,2]
[346517325,1735018246892,-500.0,0.00013972,2]
[346517326,1735018246902,-500.0,0.00013972,2]
[346517327,1735018246911,-500.0,0.00013972,2]
[346517328,1735018246920,-2551.89,0.00013972,2]
[346517329,1735018246930,-586.98,0.00013972,2]
[346517330,1735018246939,-500.0,0.00013972,2]
[346517331,1735018246950,-1335.36,0.00013972,2]
[346517332,1735018246959,-3168.41,0.00013972,2]
[346517333,1735018246969,-500.0,0.00013972,2]
[346517334,1735018246979,-1369.41,0.00013972,2]
[346517335,1735018246988,-500.0,0.00013972,2]
[346517336,1735018246997,-575.13,0.00013972,2]
[346517337,1735018247006,-845.43,0.00013972,2]
[346517338,1735018247016,-500.0,0.00013972,2]
[346517339,1735018247025,-500.0,0.00013972,2]
[346517340,1735018247035,-887.19,0.00013972,2]
[346517341,1735018247044,-500.0,0.00013972,2]
[346517342,1735018247053,-547.48,0.00013972,2]
[346517343,1735018247063,-500.0,0.00013972,2]
[346517344,1735018247073,-716.51,0.00013972,2]
[346517345,1735018247082,-500.0,0.00013972,2]
[346517346,1735018247091,-561.45,0.00013972,2]
[346517347,1735018247101,-500.0,0.00013972,2]
[346517348,1735018247110,-500.0,0.00013972,2]
[346517349,1735018247119,-558.02,0.00013972,2]
[346517350,1735018247130,-500.0,0.00013972,2]
[346517351,1735018247141,-500.0,0.00013972,2]
[346517352,1735018247151,-1000.0,0.00013972,2]
[346517353,1735018247160,-500.0,0.00013972,2]
[346517354,1735018247170,-500.0,0.00013972,2]
[346517355,1735018247179,-973.2,0.00013972,2]
[346517356,1735018247190,-3656.76,0.00013972,2]
[346517357,1735018247199,-997.53,0.00013972,2]
[346517358,1735018247209,-500.0,0.00013972,2]
[346517359,1735018247222,-855.77,0.00013972,2]
[346517360,1735018247232,-693.49,0.00013972,2]
[346517361,1735018247242,-500.0,0.00013972,2]
[346517362,1735018247251,-502.00887132,0.00013972,2]
[346517363,1735018247260,-500.0,0.00013972,2]
[346517364,1735018247269,-500.0,0.00013972,2]
[346517365,1735018247278,-637.35,0.00013972,2]
[346517366,1735018247287,-500.0,0.00013972,2]
[346517367,1735018247296,-1739.36,0.00013972,2]
[346517368,1735018247306,-500.0,0.00013972,2]
[346517369,1735018247315,-500.0,0.00013972,2]
[346517370,1735018247323,-500.0,0.00013972,2]
[346517371,1735018247332,-705.36,0.00013972,2]
[346517372,1735018247341,-500.0,0.00013972,2]
[346517373,1735018247350,-500.0,0.00013972,2]
[346517374,1735018247359,-504.21835359,0.00013972,2]
[346517375,1735018247368,-1543.65,0.00013972,2]
[346517376,1735018247378,-500.0,0.00013972,2]
[346517377,1735018247387,-820.97,0.00013972,2]
[346517378,1735018247396,-1819.38,0.00013972,2]
[346517379,1735018247405,-500.0,0.00013972,2]
[346517380,1735018247415,-500.0,0.00013972,2]
[346517381,1735018247424,-4120.74,0.00013972,2]
[346517382,1735018247434,-910.57,0.00013972,2]
[346517383,1735018247443,-989.44,0.00013972,2]
[346517384,1735018247452,-500.0,0.00013972,2]
[346517385,1735018247462,-2961.05,0.00013972,2]
[346517386,1735018247471,-500.0,0.00013972,2]
[346517387,1735018247480,-503.58,0.00013972,2]
[346517388,1735018247490,-500.0,0.00013972,2]
[346517389,1735018247499,-903.8,0.00013972,2]
[346517390,1735018247509,-596.96,0.00013972,2]
[346517391,1735018247519,-807.94,0.00013972,2]
[346517392,1735018247528,-1456.76,0.00013972,2]
[346517393,1735018247537,-2643.91,0.00013972,2]
[346517394,1735018247546,-500.0,0.00013972,2]
[346517395,1735018247556,-1308.53,0.00013972,2]
[346517396,1735018247565,-304.35635081,0.00013972,2]
[346517397,1735018247574,-794.16,0.00013972,2]
[346517398,1735018247583,-1213.29,0.00013972,2]
[346517399,1735018247593,-1676.79,0.00013972,2]
[346517400,1735018247602,-500.0,0.00013972,2]
[346517401,1735018247611,-500.0,0.00013972,2]
[346517402,1735018247622,-5281.26,0.00013972,2]
[346517403,1735018247632,-500.0,0.00013972,2]
[346517404,1735018247641,-1433.69,0.00013972,2]
[346517405,1735018247651,-429.28,0.00013972,2]
[346517406,1735018247660,-677.19,0.00013972,2]
[346517407,1735018247669,-500.0,0.00013972,2]
[346517408,1735018247679,-500.0,0.00013972,2]
[346517409,1735018247689,-1372.29,0.00013972,2]
[346517410,1735018247699,-1023.69,0.00013972,2]
[346517411,1735018247708,-500.0,0.00013972,2]
[346517412,1735018247717,-680.17,0.00013972,2]
[346517413,1735018247727,-552.15,0.00013972,2]
[346517414,1735018247736,-705.72,0.00013972,2]
[346517415,1735018247746,-500.0,0.00013972,2]
[346517416,1735018247755,-674.8,0.00013972,2]
[346517417,1735018247765,-4867.25,0.00013972,2]
[346517418,1735018247774,-3213.6,0.00013972,2]
[346517419,1735018247783,-854.26,0.00013972,2]
[346517420,1735018247794,-500.0,0.00013972,2]
[346517421,1735018247804,-500.0,0.00013972,2]
[346517422,1735018247813,-1660.69,0.00013972,2]
[346517423,1735018247823,-500.0,0.00013972,2]
[346517424,1735018247833,-500.0,0.00013972,2]
[346517425,1735018247842,-548.87,0.00013972,2]
[346517426,1735018247852,-428.30521087,0.00013972,2]
[346517427,1735018247864,-500.0,0.00013972,2]
[346517428,1735018247875,-826.14,0.00013972,2]
[346517429,1735018247888,-505.04446367,0.00013972,2]
[346517430,1735018247898,-500.0,0.00013972,2]
[346517431,1735018247909,-14771.78,0.00013972,2]
[346517432,1735018247919,-619.38,0.00013972,2]
[346517433,1735018247930,-500.0,0.00013972,2]
[346517434,1735018247940,-500.0,0.00013972,2]
[346517435,1735018247950,-3293.16,0.00013972,2]
[346517436,1735018247960,-500.0,0.00013972,2]
[346517437,1735018247969,-500.0,0.00013972,2]
[346517438,1735018247979,-500.0,0.00013972,2]
[346517439,1735018247988,-500.0,0.00013972,2]
[346517440,1735018247997,-507.60591145,0.00013972,2]
[346517441,1735018248007,-500.0,0.00013972,2]
[346517442,1735018248016,-500.0,0.00013972,2]
[346517443,1735018248026,-500.0,0.00013972,2]
[346517444,1735018248035,-359.26140375,0.00013972,2]
[346517445,1735018248045,-527.97,0.00013972,2]
[346517446,1735018248055,-500.0,0.00013972,2]
[346517447,1735018248387,-500.0,0.00013972,2]
[346517448,1735018248396,-500.0,0.00013972,2]
[346517449,1735018248406,-500.0,0.00013972,2]
[346517450,1735018248416,-518.05820589,0.00013972,2]
[346517451,1735018248427,-500.0,0.00013972,2]
[346517452,1735018248437,-500.0,0.00013972,2]
[346517453,1735018248446,-1071.77,0.00013972,2]
[346517454,1735018248455,-500.0,0.00013972,2]
[346517455,1735018248465,-500.0,0.00013972,2]
[346517456,1735018248475,-500.0,0.00013972,2]
[346517457,1735018248484,-4248.68,0.00013972,2]
[346517458,1735018248494,-1627.96297763,0.00014024,2]
[346517459,1735018248503,-172.46738495,0.00014146,2]
[346517460,1735018248512,-972.80512641,0.00014172,2]
[346517461,1735018248522,-500.0,0.00014245,2]
[346517462,1735018248531,-500.0,0.00014245,2]
[346517463,1735018248541,-500.0,0.00014245,2]
[346517464,1735018248550,-500.0,0.00014245,2]
[346517465,1735018248560,-500.0,0.00014245,2]
[346517466,1735018248569,-500.0,0.00014245,2]
[346517467,1735018248578,-219.36809703,0.00014245,2]
[346517468,1735018248588,-500.0,0.00014245,2]
[346517469,1735018248598,-500.0,0.00014245,2]
[346517470,1735018248608,-500.0,0.00014245,2]
[346517471,1735018248617,-500.0,0.00014245,2]
[346517472,1735018248627,-500.0,0.00014245,2]
[346517473,1735018248636,-257.32651308,0.00014245,2]
[346517474,1735018248646,-500.0,0.00014245,2]
[346517475,1735018248656,-431.87608628,0.00014245,2]
[346517476,1735018248665,-500.0,0.00014245,2]
[346517477,1735018248675,-500.0,0.00014245,2]
[346517478,1735018248686,-500.0,0.00014245,2]
[346517479,1735018248696,-500.0,0.00014245,2]
[346517480,1735018248706,-500.0,0.00014245,2]
[346517481,1735018248716,-476.04014469,0.00014245,2]
[346517482,1735018248725,-500.0,0.00014245,2]
[346517483,1735018248735,-500.0,0.00014245,2]
[346517484,1735018248745,-500.0,0.00014245,2]
[346517485,1735018248754,-500.0,0.00014245,2]
[346517486,1735018248764,-287.60941876,0.00014245,2]
[346517487,1735018248773,-535.15,0.00014245,2]
[346517488,1735018248783,-500.0,0.00014245,2]
[346517489,1735018248792,-491.8201247,0.00014245,2]
[346517490,1735018248802,-500.0,0.00014245,2]
[346517491,1735018248812,-500.0,0.00014245,2]
[346517492,1735018248821,-470.65707291,0.00014245,2]
[346517493,1735018248831,-609.1,0.00014245,2]
[346517494,1735018248841,-500.0,0.00014245,2]
[346517495,1735018248851,-500.0,0.00014245,2]
[346517496,1735018248861,-500.0,0.00014245,2]
[346517497,1735018248871,-500.0,0.00014245,2]
[346517498,1735018248881,-500.0,0.00014245,2]
[346517499,1735018248892,-500.0,0.00014245,2]
[346517500,1735018248902,-500.0,0.00014245,2]
[346517501,1735018248912,-500.0,0.00014245,2]
[346517502,1735018248922,-500.0,0.00014245,2]
[346517503,1735018248933,-500.0,0.00014245,2]
[346517504,1735018248943,-500.0,0.00014245,2]
[346517505,1735018248952,-500.0,0.00014245,2]
[346517506,1735018248962,-500.0,0.00014245,2]
[346517507,1735018248972,-507.77272403,0.00014245,2]
[346517508,1735018248981,-500.0,0.00014245,2]
[346517509,1735018248991,-500.0,0.00014245,2]
[346517510,1735018249001,-500.0,0.00014245,2]
[346517511,1735018249011,-500.0,0.00014245,2]
[346517512,1735018249021,-500.0,0.00014245,2]
[346517513,1735018249031,-500.0,0.00014245,2]
[346517514,1735018249041,-500.0,0.00014245,2]
[346517515,1735018249051,-500.0,0.00014245,2]
[346517516,1735018249060,-500.0,0.00014245,2]
[346517517,1735018249070,-500.0,0.00014245,2]
[346517518,1735018249080,-500.0,0.00014245,2]
[346517519,1735018249090,-500.0,0.00014245,2]
[346517520,1735018249100,-549.26354766,0.00014245,2]
[346517521,1735018249110,-500.0,0.00014245,2]
[346517522,1735018249119,-500.0,0.00014245,2]
[346517523,1735018249130,-500.0,0.00014245,2]
[346517524,1735018249141,-500.0,0.00014245,2]
[346517525,1735018249153,-500.0,0.00014245,2]
[346517526,1735018249163,-500.0,0.00014245,2]
[346517527,1735018249173,-500.0,0.00014245,2]
[346517528,1735018249183,-500.0,0.00014245,2]
[346517529,1735018249193,-500.0,0.00014245,2]
[346517530,1735018249203,-500.0,0.00014245,2]
[346517531,1735018249212,-500.0,0.00014245,2]
[346517532,1735018249223,-500.0,0.00014245,2]
[346517533,1735018249232,-500.0,0.00014245,2]
[346517534,1735018249242,-500.0,0.00014245,2]
[346517535,1735018249252,-502.86970245,0.00014245,2]
[346517536,1735018249262,-500.0,0.00014245,2]
[346517537,1735018249271,-500.0,0.00014245,2]
[346517538,1735018249281,-500.0,0.00014245,2]
[346517539,1735018249292,-500.0,0.00014245,2]
[346517540,1735018249302,-500.0,0.00014245,2]
[346517541,1735018249313,-500.0,0.00014245,2]
[346517542,1735018249323,-500.0,0.00014245,2]
[346517543,1735018249334,-500.0,0.00014245,2]
[346517544,1735018249344,-500.0,0.00014245,2]
[346517545,1735018249353,-500.0,0.00014245,2]
[346517546,1735018249363,-500.0,0.00014245,2]
[346517547,1735018249372,-500.0,0.00014245,2]
[346517548,1735018249382,-500.0,0.00014245,2]
[346517549,1735018249392,-500.0,0.00014245,2]
[346517550,1735018249402,-500.0,0.00014245,2]
[346517551,1735018249411,-645.11595768,0.00014245,2]
[346517552,1735018249421,-508.78806869,0.00014245,2]
[346517553,1735018249431,-503.16387735,0.00014245,2]
[346517554,1735018249441,-505.84150712,0.00014245,2]
[346517555,1735018249451,-505.54015271,0.00014245,2]
[346517556,1735018249460,-500.0,0.00014245,2]
[346517557,1735018249470,-505.60357839,0.00014245,2]
[346517558,1735018249480,-500.0,0.00014245,2]
[346517559,1735018249489,-150.13692425,0.00014245,2]
[346517560,1735018249499,-500.0,0.00014245,2]
[346517561,1735018249508,-500.0,0.00014245,2]
[346517562,1735018249517,-500.0,0.00014245,2]
[346517563,1735018249527,-500.0,0.00014245,2]
[346517564,1735018249536,-500.0,0.00014245,2]
[346517565,1735018249545,-503.3592569,0.00014245,2]
[346517566,1735018249555,-500.0,0.00014245,2]
[346517567,1735018249564,-501.94159616,0.00014245,2]
[346517568,1735018249574,-500.0,0.00014245,2]
[346517569,1735018249583,-206.28720129,0.00014245,2]
[346517570,1735018249592,-503.73017107,0.00014245,2]
[346517571,1735018249601,-500.0,0.00014245,2]
[346517572,1735018249611,-500.0,0.00014245,2]
[346517573,1735018249620,-509.05196431,0.00014245,2]
[346517574,1735018249630,-500.0,0.00014245,2]
[346517575,1735018249639,-500.0,0.00014245,2]
[346517576,1735018249649,-500.0,0.00014245,2]
[346517577,1735018249658,-500.0,0.00014245,2]
[346517578,1735018249667,-508.47731202,0.00014245,2]
[346517579,1735018249677,-500.0,0.00014245,2]
[346517580,1735018249687,-500.0,0.00014245,2]
[346517581,1735018249696,-500.0,0.00014245,2]
[346517582,1735018249705,-500.0,0.00014245,2]
[346517583,1735018249714,-500.0,0.00014245,2]
[346517584,1735018249724,-500.0,0.00014245,2]
[346517585,1735018249733,-500.0,0.00014245,2]
[346517586,1735018249743,-500.0,0.00014245,2]
[346517587,1735018249752,-500.0,0.00014245,2]
[346517588,1735018249762,-500.0,0.00014245,2]
[346517589,1735018249771,-500.0,0.00014245,2]
[346517590,1735018249780,-500.0,0.00014245,2]
[346517591,1735018249789,-500.0,0.00014245,2]
[346517592,1735018249799,-500.0,0.00014245,2]
[346517593,1735018249809,-500.0,0.00014245,2]
[346517594,1735018249819,-500.0,0.00014245,2]
[346517595,1735018249829,-500.0,0.00014245,2]
[346517596,1735018249839,-500.0,0.00014245,2]
[346517597,1735018249848,-500.0,0.00014245,2]
[346517598,1735018249858,-500.0,0.00014245,2]
[346517599,1735018249867,-500.0,0.00014245,2]
[346517600,1735018249876,-500.0,0.00014245,2]
[346517601,1735018249888,-500.0,0.00014245,2]
[346517602,1735018249908,-1508.76,0.00014245,2]
[346517603,1735018249919,-500.0,0.00014245,2]
[346517604,1735018249928,-500.0,0.00014245,2]
[346517605,1735018249937,-500.0,0.00014245,2]
[346517606,1735018249947,-507.74637409,0.00014245,2]
[346517607,1735018249956,-500.0,0.00014245,2]
[346517608,1735018249965,-500.0,0.00014245,2]
[346517609,1735018249974,-500.0,0.00014245,2]
[346517610,1735018249983,-500.0,0.00014245,2]
[346517611,1735018249993,-500.0,0.00014245,2]
[346517612,1735018250003,-500.0,0.00014245,2]
[346517613,1735018250012,-500.0,0.00014245,2]
[346517614,1735018250022,-500.0,0.00014245,2]
[346517615,1735018250032,-500.0,0.00014245,2]
[346517616,1735018250042,-1465.72,0.00014245,2]
[346517617,1735018250051,-500.0,0.00014245,2]
[346517618,1735018250060,-500.0,0.00014245,2]
[346517619,1735018250069,-500.0,0.00014245,2]
[346517620,1735018250079,-500.0,0.00014245,2]
[346517621,1735018250088,-500.0,0.00014245,2]
[346517622,1735018250098,-500.0,0.00014245,2]
[346517623,1735018250107,-500.0,0.00014245,2]
[346517624,1735018250116,-500.0,0.00014245,2]
[346517625,1735018250126,-1465.24,0.00014245,2]
[346517626,1735018250135,-500.0,0.00014245,2]
[346517627,1735018250144,-500.0,0.00014245,2]
[346517628,1735018250153,-508.98851282,0.00014245,2]
[346517629,1735018250163,-500.0,0.00014245,2]
[346517630,1735018250172,-500.0,0.00014245,2]
[346517631,1735018250182,-2919.0,0.00014245,2]
[346517632,1735018250192,-500.0,0.00014245,2]
[346517633,1735018250202,-500.0,0.00014245,2]
[346517634,1735018250211,-2253.9,0.00014245,2]
[346517635,1735018250221,-3237.5,0.00014245,2]
[346517636,1735018250230,-500.0,0.00014245,2]
[346517637,1735018250240,-500.0,0.00014245,2]
[346517638,1735018250249,-506.78789077,0.00014245,2]
[346517639,1735018250259,-500.0,0.00014245,2]
[346517640,1735018250268,-500.0,0.00014245,2]
[346517641,1735018250277,-554.59,0.00014245,2]
[346517642,1735018250286,-500.0,0.00014245,2]
[346517643,1735018250295,-794.47,0.00014245,2]
[346517644,1735018250305,-500.0,0.00014245,2]
[346517645,1735018250315,-500.0,0.00014245,2]
[346517646,1735018250324,-500.0,0.00014245,2]
[346517647,1735018250334,-500.0,0.00014245,2]
[346517648,1735018250343,-935.63,0.00014245,2]
[346517649,1735018250352,-500.0,0.00014245,2]
[346517650,1735018250362,-500.0,0.00014245,2]
[346517651,1735018250371,-2816.14,0.00014245,2]
[346517652,1735018250380,-500.0,0.00014245,2]
[346517653,1735018250389,-500.0,0.00014245,2]
[346517654,1735018250399,-500.0,0.00014245,2]
[346517655,1735018250408,-500.0,0.00014245,2]
[346517656,1735018250417,-500.0,0.00014245,2]
[346517657,1735018250427,-955.57,0.00014245,2]
[346517658,1735018250437,-500.0,0.00014245,2]
[346517659,1735018250446,-500.0,0.00014245,2]
[346517660,1735018250456,-500.0,0.00014245,2]
[346517661,1735018250465,-500.67166303,0.00014245,2]
[346517662,1735018250474,-500.0,0.00014245,2]